Cogmind - Beta 15 @@@ ROGUE MODE // 2025.05.06 @ 18:00:17 Player: BVrutally Odd Result: Destroyed by G-67 Veteran with Plasma Rifle Performance ------------- Evolutions (4) 2000 Regions Visited (8) 1600 Robots Destroyed (176) 880 Value Destroyed (6647) 6647 Prototype IDs (34) 680 Alien Tech Used (0) 0 Bonus (1477) 1477 TOTAL SCORE: 13284 Bonus ------- High Alert Combat Kills 873 Follower Combat Kills 30 Entered Garrisons 200 Used RIF Installer 500 Friendly Fire -126 Cogmind --------- Core Integrity 0/850 Matter 278/300 Energy 134/200 System Corruption 14% Temperature Cool (12) Movement Treading (284) Ox2 Location -6/Factory Parts ------- > --- POWER (1) -------- Cold Fusion Reactor (fused) > --- PROPULSION (4+1) - Treaded Armored-Heavy Exoskeleton > --- UTILITY (6+1) ---- Armored Scrap Engine Advanced Heat Sink Huge Storage Unit Advanced Signal Interpreter (+) Hacking Suite Rainbow Chip > --- WEAPON (4) ------- Precision Assault Rifle Ballistic Gauss Construct/C > --- INVENTORY (25) --- Advanced Heat Sink Structural Scanner Structural Scanner Long-range Sensor Array Improved Terrain Scanner Terrain Scan Processor Core Analyzer Improved Kinecellerator Advanced Reaction Control System Hardened Medium Armor Plating Graphene Brace Advanced Thermal Shield EM Shield Makeshift System Shield Relay Coupler [Proto] (9) Relay Coupler [Proto] (9) Relay Coupler [Proto] (9) Relay Coupler [Proto] (9) High-powered Tractor Beam Guided EMP Blaster Remote Datajack Plasma Cutter Power Sword Peak State ------------ > --- POWER ------------ Cold Fusion Reactor Deuterium-Angular Engine > --- PROPULSION ------- Treaded Armored-Heavy Exoskeleton > --- UTILITY ---------- Armored Scrap Engine Improved Cooling System Huge Storage Unit Advanced Signal Interpreter Hacking Suite Rainbow Chip > --- WEAPON ----------- Shotgun Laser Force Construct/G Hpw. Laser Construct/G Hvy. Thermal Neutralizer Construct/C > --- INVENTORY -------- Centrium Wheel Advanced Heat Sink Structural Scanner Structural Scanner Long-range Sensor Array Improved Terrain Scanner Terrain Scan Processor Core Analyzer Improved Kinecellerator Advanced Reaction Control System Hardened Medium Armor Plating Graphene Brace Advanced Thermal Shield EM Shield Makeshift System Shield Relay Coupler [Proto] Relay Coupler [Proto] Relay Coupler [Proto] Relay Coupler [Proto] High-powered Tractor Beam Guided EMP Blaster Remote Datajack Plasma Cutter Power Sword [Rating: 112] Favorites ----------- Power Cooled Ion Engine Engine Cooled Ion Engine Power Core Light Nuclear Core Reactor Antimatter Reactor Propulsion Light Treads Treads Light Treads Leg Light Armored Exoskeleton Wheel Subdweller Monowheel Flight Unit Improved Flight Unit Utility Huge Storage Unit Device Armored Scrap Engine Storage Huge Storage Unit Processor Rainbow Chip Hackware Hacking Suite Protection Improved Utility Shielding Weapon Enhanced Autogun Energy Gun Subdweller Laser Energy Cannon Constructs Ballistic Gun Enhanced Autogun Ballistic Cannon Constructs Launcher Grenade Launcher Slashing Weapon Scythe Build | -11 -10 -10 -8 -8 -8 -6 -6 -6 ------- Run | Yrd Mat Sub Mat Sto Rec Fac Gar Fac Slots Evolved 8 | . . . 4 . . 4 . . Power . | . . . . . . . . . Propulsion 2 | . . . 2 . . . . . Utility 4 | . . . 2 . . 2 . . Weapon 2 | . . . . . . 2 . . Parts Attached 98 | 7 6 22 20 12 4 10 12 5 Power 16 | 1 1 3 3 2 1 1 3 1 Engine 10 | 1 1 3 1 2 . 1 1 . Core 3 | . . . 2 . . . 1 . Reactor 3 | . . . . . 1 . 1 1 Propulsion 18 | 2 . 4 7 2 1 1 . 1 Treads 7 | 2 . 1 3 . 1 . . . Leg 4 | . . . 2 1 . 1 . . Wheel 6 | . . 3 2 . . . . 1 Hover . | . . . . . . . . . Flight 1 | . . . . 1 . . . . Utility 27 | 2 2 5 4 1 1 6 4 2 Device 14 | 1 1 1 1 . 1 3 4 2 Storage 4 | 1 1 1 1 . . . . . Processor 3 | . . . . . . 3 . . Hackware 1 | . . . 1 . . . . . Protection 5 | . . 3 1 1 . . . . Artifact . | . . . . . . . . . Weapon 37 | 2 3 10 6 7 1 2 5 1 Energy Gun 6 | 1 1 3 . 1 . . . . Energy Cannon 7 | . . 3 1 2 . 1 . . Ballistic Gun 18 | 1 2 2 3 2 1 1 5 1 Ballistic Cannon 2 | . . . 1 1 . . . . Launcher 2 | . . 1 . 1 . . . . Special Weapon . | . . . . . . . . . Impact Weapon . | . . . . . . . . . Slashing Weapon 2 | . . 1 1 . . . . . Piercing Weapon . | . . . . . . . . . Special Melee Weapon . | . . . . . . . . . Unidentified Prototypes 13 | . . . . 7 2 . 2 2 Parts Lost 32 | . . 3 2 . . 6 10 11 Power 5 | . . . . . . 1 1 3 Propulsion 6 | . . 1 2 . . 1 . 2 Utility 2 | . . 1 . . . . 1 . Weapon 19 | . . 1 . . . 4 8 6 Highest Loss Streak 3 | . . 2 1 . . 3 3 3 To Critical Strikes . | . . . . . . . . . Average Backups 22 | 4 15 23 24 24 23 19 22 23 Power 1 | . 1 1 1 2 1 . . . Propulsion 2 | 3 4 4 2 3 3 . . . Utility 9 | . 3 6 9 10 10 12 16 18 Weapon 6 | . 5 10 9 7 6 4 2 2 Tool/Special . | . . . . . . . . . Unused Backups 43 | . . 4 6 4 4 . 5 20 Power . | . . . . . . . . . Propulsion 6 | . . 1 2 . 3 . . . Utility 25 | . . . 1 3 . . 4 17 Weapon 10 | . . 3 3 1 1 . 1 1 Tool/Special 2 | . . . . . . . . 2 Average Slot Usage (%) 82 | . 100 99 87 80 70 72 66 64 Engine 9 | . 14 14 3 8 8 7 7 3 Treads 10 | . 28 24 7 . . . 2 4 Leg 5 | . . . 9 17 10 2 . . Wheel 1 | . . 3 9 . . 3 . . Device 8 | . 14 . 15 9 9 8 10 11 Storage 9 | . 14 13 9 9 9 5 5 5 Processor 2 | . . . . . . 10 10 11 Hackware 4 | . . . 1 9 9 5 5 5 Protection 5 | . . 12 9 9 2 . . . Energy Gun 5 | . 4 12 . . . 4 5 6 Energy Cannon 6 | . . 9 4 1 11 . 4 4 Ballistic Gun 10 | . 23 6 12 15 5 19 6 3 Peak Build Rating 112 | 9 11 18 41 47 65 92 102 112 Average Rating 44 | 5 10 15 32 41 52 77 92 100 On Entrance 39 | . 9 11 18 41 44 50 81 97 Naked Turns . | . . . . . . . . . Heaviest Build 129 | 14 92 105 106 101 105 119 127 129 Greatest Support 146 | 40 40 40 60 60 60 51 101 146 Greatest Overweight (x) 5 | . 2 5 4 1 4 4 4 1 Average Overweight (x) 1 | . 1 1 2 1 2 3 1 . Largest Inventory Capacity 25 | 8 25 25 25 25 25 25 25 25 Average Capacity 24 | 7 24 24 25 25 25 25 25 25 Most Carried 25 | 6 21 25 25 25 25 23 25 25 Average Carried 22 | 4 15 23 24 24 24 20 23 24 Final Capacity 25 | 8 25 25 25 25 25 25 25 25 Final Carried 25 | 6 21 25 25 25 23 22 25 24 Scrap Engine Consumption 209 | . . . . . 69 40 61 39 Constructs Created 12 | . . . . . 3 3 3 3 Constructs Modified 56 | . . . . . 12 9 28 7 Class Distribution -------------------- 52% | Mutant 9% | Commander-Mutant 8% | Commander-Construct 7% | Construct 6% | Bothacker-Construct 4% | Scavenger-Mutant 3% | Gunner Dominant Class ---------------- Mutant | -10/Materials Mutant | -10/Subcaves Scavenger-Mutant | -8/Materials Mutant | -8/Storage Commander-Mutant | -8/Recycling Gunner | -6/Factory Construct | -6/Garrison Bothacker-Construct | -6/Factory Resources | -11 -10 -10 -8 -8 -8 -6 -6 -6 ----------- Run | Yrd Mat Sub Mat Sto Rec Fac Gar Fac Matter Collected 5079 | 280 207 442 488 496 157 984 1185 840 Remotely . | . . . . . . . . . Salvage Created 10112 | 125 549 733 953 438 664 1263 3325 2062 Parts 427 | 8 23 41 63 24 22 58 130 58 Haulers Intercepted 13 | . 2 . 1 6 . 2 . 2 Recyclers Shooed 10 | . . . 3 4 . 2 . 1 Parts Field Recycled . | . . . . . . . . . Retrieved Matter . | . . . . . . . . . Parts Self-Destructed 6 | . . 6 . . . . . . Prevented . | . . . . . . . . . Kills | -11 -10 -10 -8 -8 -8 -6 -6 -6 ------- Run | Yrd Mat Sub Mat Sto Rec Fac Gar Fac Combat Hostiles Destroyed 132 | . 8 17 18 3 8 12 41 25 Guns 81 | . 8 10 11 2 . 12 25 13 Cannons 43 | . . 4 5 1 7 . 14 12 AOE 4 | . . 2 2 . . . . . Classes Destroyed 18 | 2 3 3 4 . 3 . 1 2 Worker 6 | . . . 1 1 2 2 . . Builder 2 | . . . 1 . . 1 . . Tunneler 4 | 2 . . 1 . 1 . . . Hauler 16 | . 2 . 1 6 3 2 . 2 Recycler 8 | 1 . . 2 . . 2 . 3 Operator 3 | . . . 1 . . . . 2 Watcher 5 | . 3 . . 1 . 1 . . Swarmer 14 | . . 3 6 . . . 5 . Cutter 3 | . . . . . . . 3 . Grunt 58 | . 8 2 9 1 . 5 15 18 Brawler 3 | . . . . . 2 . . 1 Duelist 1 | . . . . . . . . 1 Sentry 24 | . . . 3 2 2 2 12 3 Hunter 7 | . . . . . 1 3 3 . Programmer 7 | . . . . . 1 2 3 1 Heavy 1 | . . . . . . . . 1 Cobbler 1 | . . 1 . . . . . . Subdweller 13 | . . 12 . . 1 . . . Best Kill Streak 6 | 1 2 4 5 4 4 4 5 6 Combat Bots Only 5 | . 2 4 5 1 4 2 5 4 Max Kills in Single Turn 2 | 1 1 2 1 1 1 1 2 1 Gunslinging 1 | . . . . . . . 1 . Exploded 2 | . . 2 1 . . . . . Melee . | . . . . . . . . . Uniques/NPCs Destroyed 1 | . . . . . 1 . . . 01-MTF (-8/Recycling) Combat | -11 -10 -10 -8 -8 -8 -6 -6 -6 -------- Run | Yrd Mat Sub Mat Sto Rec Fac Gar Fac Hostile Shots Fired 1197 | . 35 79 143 18 21 178 484 239 Missed 368 | . 9 27 40 7 6 55 170 54 Hits 829 | . 26 52 103 11 15 123 314 185 Melee 17 | . . . . . 1 . 13 3 Projectile 812 | . 26 52 103 11 14 123 301 182 AOE 9 | . . 2 . . . . 6 1 Critical Strikes 28 | . . 2 6 . 1 4 10 5 Actively Blocked 1 | . . . 1 . . . . . Part Disruptions 1 | . . . . . . 1 . . Damage Taken 12369 | . 349 1107 1374 171 235 1854 3672 3607 Core 1340 | . 50 197 228 15 . 132 328 390 Absorbed by Shields 92 | . . . . . 47 45 . . Redirected to Shielding 67 | . . . 57 10 . . . . Regen/Repaired (Parts) 2985 | . . . . 112 27 380 1829 637 Core Remaining (%) 52 | 100 . 1 . . 55 . . . Volleys Fired 572 | 10 38 70 62 48 34 75 139 96 Largest 5 | 2 2 2 2 2 2 5 5 4 Hottest 318 | 70 90 160 160 100 50 318 261 202 Shots Fired 1391 | 20 76 131 120 73 42 283 373 273 Gun 979 | 20 76 80 80 44 12 278 210 179 Cannon 409 | . . 50 38 29 30 5 163 94 Launcher 3 | . . 1 2 . . . . . Special . | . . . . . . . . . Kinetic 724 | 10 50 39 81 61 11 254 157 61 Thermal 644 | 10 13 91 37 12 30 23 216 212 Explosive 3 | . . 1 2 . . . . . Electromagnetic 20 | . 13 . . . 1 6 . . Robot Hit Streak 25 | 5 8 25 15 10 14 9 24 20 Robot Miss Streak 7 | 2 3 3 2 4 3 5 6 7 Penetration Max 1 | . . . . . . 1 . 1 Secondary Targets 13 | . . 1 2 . . 3 7 . Max Gunslinging Chain 1 | . . 1 1 . . 1 1 . Shots Hit Robots 873 | 13 51 80 76 39 29 156 255 174 Core Hits 432 | 5 22 29 37 21 10 59 177 72 Critical Kills 11 | . . 1 . . 2 1 6 1 Critical Parts Destroyed 9 | . . . . . . 5 3 1 Critical Strikes 32 | 2 2 1 1 2 2 6 14 2 Burn 8 | 2 2 . . . . . 4 . Meltdown 7 | . . 1 . . 2 . 4 . Destroy 14 | . . . . . . 6 6 2 Blast 3 | . . . 1 2 . . . . Melee Attacks 3 | . . 2 1 . . . . . Impact . | . . . . . . . . . Slashing 3 | . . 2 1 . . . . . Piercing . | . . . . . . . . . Sneak Attacks . | . . . . . . . . . Combat Hostiles . | . . . . . . . . . Follow-up Attacks . | . . . . . . . . . Damage Inflicted 22150 | 144 764 1705 1427 890 893 2946 7506 5875 Guns 12264 | 144 759 1063 748 414 85 2946 3313 2792 Cannons 9246 | . . 554 630 476 808 . 4193 2585 Explosions 629 | . . 88 49 . . . . 492 Melee . | . . . . . . . . . Ramming 11 | . 5 . . . . . . 6 Kinetic 9106 | 34 513 420 763 710 85 2786 2959 836 Thermal 12212 | 110 73 1197 615 180 808 141 4547 4541 Explosive 629 | . . 88 49 . . . . 492 Electromagnetic 192 | . 173 . . . . 19 . . Impact . | . . . . . . . . . Slashing . | . . . . . . . . . Piercing . | . . . . . . . . . Highest Corruption 14 | . . . . 1 2 6 8 14 Average Corruption 3 | . . . . 1 1 1 6 10 Corruption Purged . | . . . . . . . . . Corruption Blocked . | . . . . . . . . . Effects 151 | . . . . 8 42 8 49 44 Message Errors 32 | . . . . 2 11 2 9 8 Matter Fused 34 | . . . . 3 6 3 13 9 Heat Flow Errors 17 | . . . . 1 7 . 4 5 Energy Discharges 24 | . . . . 2 9 1 7 5 Parts Rejected 2 | . . . . . . 1 1 . Parts Fused 3 | . . . . . . . . 3 Data Loss (minor) 16 | . . . . . 5 . 6 5 Data Loss (major) 4 | . . . . . 1 1 2 . Misfires 8 | . . . . . 3 . 2 3 Alerts 1 | . . . . . . . 1 . Weapon Failures 10 | . . . . . . . 4 6 Overload Shots 2 | . . . . . . . 2 . Overflow Damage 362 | . . . 2 11 91 . 105 153 Projectiles 264 | . . . . 11 91 . 105 57 Explosions 98 | . . . 2 . . . . 96 Melee . | . . . . . . . . . Knockbacks 3 | . 1 . . 1 . . . 1 Impact 2 | . 1 . . . . . . 1 Kinetic 1 | . . . . 1 . . . . Secondary . | . . . . . . . . . Self-Inflicted Damage 210 | . . . . . . . . 210 Shots 3 | . . . . . . . . 3 Rammed 2 | . 1 . . . . . . 1 Targets Rammed 2 | . 1 . . . . . . 1 Kicked . | . . . . . . . . . Crushed . | . . . . . . . . . Highest Temperature 461 | 90 258 162 136 212 269 461 259 313 Average Temperature 78 | 36 98 44 38 48 91 138 67 53 Received Heat Transfer 4080 | . 198 297 693 81 38 421 978 1374 Effects 5 | . . . . . . 3 2 . Interference 2 | . . . . . . . 2 . Matter Decay 1 | . . . . . . 1 . . Short Circuit 2 | . . . . . . 2 . . Siege Activations . | . . . . . . . . . Martial Activations . | . . . . . . . . . Shielding Activations . | . . . . . . . . . Robots Disrupted . | . . . . . . . . . Combat Hostiles . | . . . . . . . . . Robots Corrupted . | . . . . . . . . . Combat Hostiles . | . . . . . . . . . Parts Fried . | . . . . . . . . . Impact Corruptions . | . . . . . . . . . Robots Melted 8 | . . 1 . . 2 . 5 . Combat Hostiles 3 | . . 1 . . . . 2 . Parts Melted 42 | 2 2 4 1 . 2 . 17 14 Heat Transferred 15688 | 481 370 1515 888 309 1189 37 6385 4514 Parts Sabotaged . | . . . . . . . . . Parts Stolen . | . . . . . . . . . Parts Stripped . | . . . . . . . . . Power Chain Reactions . | . . . . . . . . . Alert | -11 -10 -10 -8 -8 -8 -6 -6 -6 ------- Run | Yrd Mat Sub Mat Sto Rec Fac Gar Fac Maximum Alert Level 4 | . . . 1 . . 1 4 3 Low Security (%) 74 | 100 100 . 78 100 100 55 20 . Level 1 7 | . . . 21 . . 44 18 . Level 2 8 | . . . . . . . 21 60 Level 3 8 | . . . . . . . 32 39 Level 4 . | . . . . . . . 6 . Level 5 . | . . . . . . . . . High Security . | . . . . . . . . . Max Security . | . . . . . . . . . Peak Influence 1145 | 5 57 . 256 113 94 300 1145 931 Initial 600 | . . . . 90 3 250 14 600 Average 166 | . 11 . 93 24 5 132 561 714 Influence Increases 4365 | 15 303 120 544 285 281 693 1251 873 Destroy 0b10 Robot/C 2360 | . 160 100 360 60 120 240 820 500 Destroy 0b10 Robot/NC 240 | 15 25 . 35 40 . 40 50 35 Destroy Leader 386 | . 50 20 82 34 . 76 30 94 Allied During Kill 14 | . . . . . 10 . 4 . Successful Hack 99 | . 7 . 12 22 13 33 12 . Select Force Hacks 120 | . . . . . 120 . . . Disable Machine 240 | . 30 . 30 60 15 15 . 90 Anti-Garrison Action 150 | . . . . . . . 150 . Destroy Structure 236 | . 1 . 25 9 3 9 95 94 Advance Influence 250 | . . . . . . 250 . . Partial Spotted 15 | . . . . 15 . . . . Lose Combat Pursuer 255 | . 30 . . 45 . 30 90 60 Influence Decreases 3454 | 15 299 124 330 489 291 672 127 1107 Entered New Map 686 | . . 3 . 124 7 . 7 545 Time Decay 2162 | 15 299 109 319 365 240 363 . 452 Lost Part 293 | . . 12 11 . . 60 100 110 Lost Ally 40 | . . . . . . 20 20 . Purge Threat 273 | . . . . . 44 229 . . Squads Dispatched 23 | . . . 2 5 . 7 . 9 Investigation 3 | . . . . 2 . 1 . . Extermination 4 | . . . . . . 3 . 1 Reinforcement 11 | . . . 2 1 . 2 . 6 Assault 4 | . . . . 2 . . . 2 Garrison 1 | . . . . . . 1 . . Intercept . | . . . . . . . . . Searches Triggered . | . . . . . . . . . Construction Impeded 1 | . . . . . . . . 1 Haulers Reinforced 3 | . . . . . . 1 . 2 Active Scanning Responses . | . . . . . . . . . Cargo Convoy Interrupts . | . . . . . . . . . Stealth | -11 -10 -10 -8 -8 -8 -6 -6 -6 --------- Run | Yrd Mat Sub Mat Sto Rec Fac Gar Fac Distress Signals 7 | . 3 . 1 2 . . . 1 Communications Jammed . | . . . . . . . . . Distress Signals . | . . . . . . . . . Times Spotted 198 | . 15 18 25 23 12 27 41 37 Peak Tracking Total 9 | . 3 3 6 3 2 6 9 7 Tactical Retreats 12 | . 2 . . 3 . 1 2 4 Traps | -11 -10 -10 -8 -8 -8 -6 -6 -6 ------- Run | Yrd Mat Sub Mat Sto Rec Fac Gar Fac Traps Triggered 11 | . . . . . . 4 5 2 Indirectly . | . . . . . . . . . Trap Hack Attempts . | . . . . . . . . . Triggered . | . . . . . . . . . Disarmed 4 | . . . . 4 . . . . Reprogrammed . | . . . . . . . . . Reused . | . . . . . . . . . Traps Extracted . | . . . . . . . . . Installed 1 | . . 1 . . . . . . Triggered . | . . . . . . . . . Machines | -11 -10 -10 -8 -8 -8 -6 -6 -6 ---------- Run | Yrd Mat Sub Mat Sto Rec Fac Gar Fac Machines Disabled 20 | . 2 1 2 4 1 1 3 6 Max in Single Turn 2 | . 1 1 1 1 1 1 2 2 Garrison Access 2 | . . . 1 1 . . . . Garrison Relay 2 | . . . . . . . 2 . Phase Generator 1 | . . . . . . . 1 . Machines Repaired . | . . . . . . . . . Machines Dismantled . | . . . . . . . . . Machines Sabotaged . | . . . . . . . . . Overloaded Fab Kills . | . . . . . . . . . Hacking | -11 -10 -10 -8 -8 -8 -6 -6 -6 --------- Run | Yrd Mat Sub Mat Sto Rec Fac Gar Fac Machines Accessed 34 | . 5 1 4 6 9 4 2 3 Terminals 23 | . 4 . 3 5 3 3 2 3 Fabricators . | . . . . . . . . . Repair Stations 1 | . . . . 1 . . . . Recycling Units 5 | . 1 . . . 4 . . . Scanalyzers . | . . . . . . . . . Garrison Access 2 | . . . 1 . . 1 . . Total Hacks 93 | . 12 1 7 15 40 9 4 5 Successful 58 | . 3 1 3 8 37 5 1 . Failed 35 | . 9 . 4 7 3 4 3 5 Catastrophic 6 | . 1 . 1 . . 2 1 1 Database Lockouts . | . . . . . . . . . Manual 23 | . 4 . 4 8 4 . 2 1 Terminals 54 | . 10 . 6 13 9 7 4 5 Fabricators . | . . . . . . . . . Repair Stations 2 | . . . . 2 . . . . Recycling Units 6 | . 2 . . . 4 . . . Scanalyzers . | . . . . . . . . . Garrison Access 3 | . . . 1 . . 2 . . Terminal Hacks 47 | . 2 1 1 5 33 4 1 . Record 25 | . . . . . 25 . . . Part Schematic 1 | . . . . . . 1 . . Prototype ID Bank 2 | . . . . 1 1 . . . Open Door 2 | . . . . 2 . . . . Branch Access Points 2 | . . . 1 . 1 . . . Emergency Access Points 1 | . . . . . . . 1 . Terminal Index 1 | . . . . . . 1 . . Alert Level 1 | . 1 . . . . . . . Unreport Threat 4 | . . . . . 2 2 . . Disarm Traps 1 | . . . . 1 . . . . Recall Reinforcements 1 | . . . . . 1 . . . Registered Components 1 | . 1 . . . . . . . Zone Layout 2 | . . . . 1 1 . . . Proto ID Catalog 1 | . . 1 . . . . . . Release Object 2 | . . . . . 2 . . . Fabricator Hacks . | . . . . . . . . . Repair Station Hacks 2 | . . . . 2 . . . . Scan Component 1 | . . . . 1 . . . . Repair 1 | . . . . 1 . . . . Recycling Unit Hacks 1 | . 1 . . . . . . . Retrieve Components 1 | . 1 . . . . . . . Scanalyzer . | . . . . . . . . . Garrison Access Hacks 2 | . . . 1 . . 1 . . Unlock Access 1 | . . . . . . 1 . . Seal Access 1 | . . . 1 . . . . . Unauthorized Hacks 6 | . . . 1 1 4 . . . Terminals 2 | . . . 1 1 . . . . Botnet 2 | . . . 1 1 . . . . Fabricators . | . . . . . . . . . Repair Stations . | . . . . . . . . . Recycling Units 4 | . . . . . 4 . . . Tunnel 4 | . . . . . 4 . . . Scanalyzers . | . . . . . . . . . Garrison Access . | . . . . . . . . . Data Cores Recovered . | . . . . . . . . . Used . | . . . . . . . . . Hacking Detections 21 | . 4 . 3 3 2 4 2 3 Full Trace Events 4 | . . . . 2 1 1 . . Feedback Events 1 | . . . . 1 . . . . Corruption 1 | . . . . 1 . . . . Feedback Blocked . | . . . . . . . . . Robot Schematics Acquired . | . . . . . . . . . Robots Built . | . . . . . . . . . Authchips . | . . . . . . . . . Time . | . . . . . . . . . Total Robot Build Rating . | . . . . . . . . . Part Schematics Acquired 1 | . . . . . . 1 . . Parts Built . | . . . . . . . . . Authchips . | . . . . . . . . . Time . | . . . . . . . . . Total Part Build Rating . | . . . . . . . . . Parts Repaired 1 | . . . . 1 . . . . Time 38 | . . . . 38 . . . . Parts Recycled . | . . . . . . . . . Recycled Matter . | . . . . . . . . . Retrieved Matter . | . . . . . . . . . Retrieved Components 3 | . 3 . . . . . . . Parts Scanalyzed . | . . . . . . . . . Part Schematics Acquired . | . . . . . . . . . Parts Damaged . | . . . . . . . . . Bothacking | -11 -10 -10 -8 -8 -8 -6 -6 -6 ------------ Run | Yrd Mat Sub Mat Sto Rec Fac Gar Fac Used RIF Installer 1 | . . . . . . . 1 . Robots Hacked . | . . . . . . . . . Non-combat . | . . . . . . . . . Combat . | . . . . . . . . . Robot Hacks Applied . | . . . . . . . . . Relay Couplers Released 12 | . . . 1 2 . . 9 . Machine Destruction 12 | . . . 1 2 . . 9 . Fabnet Peak Effective % . | . . . . . . . . . Robots Rewired 14 | . . . . . 13 . 1 . Allies Hacked . | . . . . . . . . . Hacks Repelled . | . . . . . . . . . Allies | -11 -10 -10 -8 -8 -8 -6 -6 -6 -------- Run | Yrd Mat Sub Mat Sto Rec Fac Gar Fac Total Allies 14 | . . . . . 13 . 1 . Largest Group 9 | . . . . . 9 2 1 . Highest-Rated Group 123 | . . . . . 123 54 46 . Highest-Rated Ally 46 | . . . . . 27 27 46 . Total Orders 4 | . . . . . 4 . . . STAY 4 | . . . . . 4 . . . Ally Attacks 15 | . . . . . 14 . 1 . Total Damage 182 | . . . . . 155 . 27 . Kills 1 | . . . . . 1 . . . Allies Corrupted . | . . . . . . . . . Allies Melted 1 | . . . . . 1 . . . Intel | -11 -10 -10 -8 -8 -8 -6 -6 -6 ------- Run | Yrd Mat Sub Mat Sto Rec Fac Gar Fac Active Infowar (turns) 5526 | 42 1841 205 718 1429 942 349 . . Optics 205 | . . 205 . . . . . . Terrain 651 | 42 260 . . . . 349 . . Structural 4670 | . 1581 . 718 1429 942 . . . Robot Analysis Total . | . . . . . . . . . Derelict Logs Recovered . | . . . . . . . . . Drone Launches . | . . . . . . . . . Drone Recoveries . | . . . . . . . . . Exploration | -11 -10 -10 -8 -8 -8 -6 -6 -6 ------------- Run | Yrd Mat Sub Mat Sto Rec Fac Gar Fac Turns Passed 16549 | 231 1841 4176 898 1752 3753 1086 1691 1121 Spaces Moved 6022 | 119 535 1186 351 602 1241 658 888 442 Core 11 | 11 . . . . . . . . Treads 2362 | 108 535 861 . . 11 . 462 385 Legs 1960 | . . . 128 602 808 255 110 57 Wheels 1065 | . . 325 223 . 48 403 66 . Hover 250 | . . . . . . . 250 . Flight 374 | . . . . . 374 . . . Fastest Speed 50 | 50 160 129 117 250 118 105 105 128 Average Speed 205 | 149 315 272 174 250 202 127 122 170 Slowest Speed 560 | 160 320 560 250 250 250 138 140 222 Overloaded Moves . | . . . . . . . . . Propulsion Burnouts . | . . . . . . . . . Robots Hopped . | . . . . . . . . . Potential Cave-ins . | . . . . . . . . . Cave-ins Triggered . | . . . . . . . . . Exploration Rate (%) 56 | 9 91 70 35 89 98 24 76 13 Regions Visited 8 Branch Regions 3 Pre-discovered Areas 5 | . . . . 1 4 . . . Known Exits Taken 2 | . . . 1 . . 1 . . Unknown Exits Taken 5 | 1 1 1 . 1 1 . . . Scrap Searched 9 | . . 9 . . . . . . Spaces Dug 3 | . . . 1 . 1 1 . . Terrain Destroyed 232 | . . 4 25 9 3 7 75 109 Melee 1 | . . . 1 . . . . . Projectile 84 | . . 4 11 9 3 7 9 41 AOE 147 | . . . 13 . . . 66 68 Terrain Rammed . | . . . . . . . . . Walls Destroyed . | . . . . . . . . . Machines Disabled . | . . . . . . . . . Actions | -11 -10 -10 -8 -8 -8 -6 -6 -6 --------- Run | Yrd Mat Sub Mat Sto Rec Fac Gar Fac Total 9150 | 150 612 2005 525 792 2455 800 1214 597 Wait 2091 | 9 18 653 38 97 1086 38 115 37 Move 6015 | 118 534 1185 350 601 1240 658 887 442 Hop . | . . . . . . . . . Pick Up 112 | 6 11 36 19 10 9 3 14 4 Fast Attach 50 | 7 3 7 5 8 2 4 10 4 Attach 27 | . . 4 6 1 1 6 5 4 Detach 11 | . 3 2 . 3 . . 2 1 Swap 69 | . 3 21 17 7 4 7 8 2 Drop 107 | . 1 24 27 17 18 1 13 6 Fire 572 | 10 38 70 62 48 34 75 139 96 Melee 3 | . . 2 1 . . . . . Ram . | . . . . . . . . . Kick . | . . . . . . . . . Crush 2 | . 1 . . . . . . 1 Escape Stasis 23 | . . . . . . 8 15 . Rewire 67 | . . . . . 61 . 6 . Trap 1 | . . 1 . . . . . . Miscellaneous . | . . . . . . . . . Route ------- -11/Scrapyard -10/Materials (discovered 6 exits: [*Mat x3] / [*Min x2] / *Sub) -10/Subcaves -8/Materials (discovered 2 exits: *Sto x2) -8/Storage (discovered 2 exits: [*Fac] / *Rec) -8/Recycling -6/Factory (discovered 2 exits: *Fac / Gar) -6/Garrison (discovered 2 exits: *Fac x2) -6/Factory History --------- Turn | Location | Event 4 | -11/Scrapyard | Discovered new exit (range 15) 232 | -11/Scrapyard | Entered Materials 301 | -10/Materials | Build established: Mutant 742 | -10/Materials | Discovered new exit (range 16) 1035 | -10/Materials | Discovered new exit (range 16) 1456 | -10/Materials | Discovered new exit (range 16) 1581 | -10/Materials | Discovered new exit (range 13) 2002 | -10/Materials | Discovered new exit (range 7) 2050 | -10/Materials | Discovered new exit (range 8) 2073 | -10/Materials | Entered Subcaves 2195 | -10/Subcaves | Discovered new exit (range 16) 2471 | -10/Subcaves | A swath of the cavern ceiling suddenly collapsed 2774 | -10/Subcaves | Shifting Twisted Machinery released Enh. Flamer 2984 | -10/Subcaves | Core integrity fell below 50% 5720 | -10/Subcaves | Core integrity fell below 20% 6004 | -10/Subcaves | Visited 4L-MR0's lab 6019 | -10/Subcaves | Found Rainbow Chip 6025 | -10/Subcaves | Build established: Scavenger-Mutant 6249 | -10/Subcaves | Entered Materials 6249 | -8/Materials | Evolved 4 slots: Propulsion x2, Utility x2 6576 | -8/Materials | Identified exit to Storage 6949 | -8/Materials | Build established: Mutant 7147 | -8/Materials | Entered Storage 7459 | -8/Storage | Met 01-MTF 7580 | -8/Storage | Repaired Hvy. Particle Cannon 7754 | -8/Storage | Discovered new exit (range 16) 8082 | -8/Storage | Learned location of Armory (-3) 8886 | -8/Storage | Discovered new exit (range 7) 8899 | -8/Storage | Entered Recycling 8899 | -8/Recycling | Accompanied by 1 ally (01-MTF) 9604 | -8/Recycling | Murdered 6 allies 9795 | -8/Recycling | Entered Scraplab 9842 | -8/Recycling | Found Prototype Device 9842 | -8/Recycling | Identified Scrap Engine 9987 | -8/Recycling | Build established: Commander-Mutant 10234 | -8/Recycling | Destroyed 01-MTF 10257 | -8/Recycling | Found Prototype Device 10533 | -8/Recycling | Discovered new exit (range 11) 11510 | -8/Recycling | Build established: Commander-Construct 12652 | -8/Recycling | Entered Factory 12652 | -6/Factory | Accompanied by 2 allies 12652 | -6/Factory | Evolved 4 slots: Utility x2, Weapon x2 12965 | -6/Factory | Build established: Skirmisher 13055 | -6/Factory | Attached Rainbow Chip, gained temporary slots: Power, Propulsion, Utility, Weapon 13101 | -6/Factory | Garrison activated, responded to threat 13307 | -6/Factory | Build established: Gunner 13581 | -6/Factory | Lost 3 parts (1p2w) 13598 | -6/Factory | Discovered new exit (range 5) 13606 | -6/Factory | Identified exit to Factory 13738 | -6/Factory | Identified exit to Garrison 13738 | -6/Factory | Entered Garrison 13765 | -6/Garrison | Lost 3 parts (1n2w) 14052 | -6/Garrison | Triggered checkpoint 14076 | -6/Garrison | Triggered checkpoint 14120 | -6/Garrison | Triggered checkpoint 14276 | -6/Garrison | Discovered new exit (range 10) 14326 | -6/Garrison | Triggered checkpoint 14384 | -6/Garrison | Triggered checkpoint 14394 | -6/Garrison | Garrison Relay disabled 14429 | -6/Garrison | Lost 3 parts (1u2w) 14620 | -6/Garrison | Triggered checkpoint 14685 | -6/Garrison | Build established: Construct 14698 | -6/Garrison | Triggered checkpoint 14808 | -6/Garrison | Found Relay Coupler [Proto] 14810 | -6/Garrison | Found Relay Coupler [Proto] 14870 | -6/Garrison | Found Relay Coupler [Proto] 14873 | -6/Garrison | Found Relay Coupler [Proto] 14960 | -6/Garrison | Triggered checkpoint 14964 | -6/Garrison | Garrison Relay disabled 15158 | -6/Garrison | Triggered checkpoint 15238 | -6/Garrison | Triggered checkpoint 15277 | -6/Garrison | Core integrity fell below 50% 15319 | -6/Garrison | Phase Generator disabled 15348 | -6/Garrison | Identified 01-MTF's Autohacker 15403 | -6/Garrison | Installed Relay Interface Framework 15411 | -6/Garrison | Discovered new exit (range 13) 15426 | -6/Garrison | Identified exit to Factory 15429 | -6/Garrison | Entered Factory 15691 | -6/Factory | Build established: Bothacker-Construct 15779 | -6/Factory | First assault squad dispatched 15835 | -6/Factory | System corruption reached 10% 16208 | -6/Factory | Lost 3 parts (2p1n) 16333 | -6/Factory | Core integrity fell below 20% 16550 | -6/Factory | Destroyed by G-67 Veteran with Plasma Rifle Last Messages --------------- 16539_ Arm. Scrap Engine damaged due to network destabilization (-9). 16539_ K-01 Serf collects debris. 16540_ G-50 Soldier destroyed. 16542_ K-01 Serf collects debris. 16544_ Scrap Engine modifies Laser Force Construct/G: Shot Heat -33, Min Damage -8, Range +5, Energy Cost -11 Renamed Ballistic Gauss Construct/C. 16544_ Treaded Armored-Heavy Exoskeleton destroyed. 16544_ Treaded Armored-Heavy Exoskeleton core remains intact and functional. 16545_ K-01 Serf collects debris. 16546_ G-50 Soldier suffers critical hit (Destroy). 16546_ Destroyed Adv. Heat Sink. 16548_ K-01 Serf collects debris. 16549_ G-50 Soldier destroyed. Map ----- +----------------------------------------------------+ | ???????????????????????????????? ##?? | | ????????????????????????????????""" """ #?? | | ?????????????????????????????"" """ """ # ### | | ?????????????????????????????"" """ """ # # | | ??????????????????????????# + | | ??????????????????????????# % | | ?????????????????????????????######+## ## # | | ????????????????????????######### + | | ????????????????????????? # ## # ## # | | ????????????????????????" """" # ######## ### | | ???????????????????????"" """" # #??????# % | | ?????????????????????"""" """" + #??????##### | | ???????????????????? """" """" # #?????????# | | ???????????????????# """" """" # #?????????## | | ???????????????????# """" """" # #??????????# | | ???????????????????# """" """" # #??????????# | | ???????????????????# !# #??????????? | | ???????????????????# # #?????????? | | ???????????????????# # #???????? | | ???????????????????# # #?????? """" | | ??????????????????#########+##### #?????? """" | | ??????????????????# %!! #???????"""" | | ??????????????????# *= !k!! # ????????"" | | ??????????????????# ==!u% % + ???????" | | ??????????????????# =[%=!! ! #??????????" | | ??????????? "# mg%@%!! #??????????" | | ???????????? ## *% [######### #??????????? | | ????????????#?????# [ #?###???? #??????????? | | ???????????????? #???????? #??????????? | | ????????????? #????????? #??????????? | | ??????????? #????????? #??????????? | | ????????? #????????? #??????????? | | ?????????" """ " #?????????? #??????????? | | ?????????? """ ###+####?????????? #??????????? | | ????????????"" ?? %??????????????? #??????????? | | ???????????? ??? ??????????????? ??????????? | | ???????????? ?? ????????????????? ??????????? | | ??????????? ??? ????????????????????????????? | | ???????????? ???# ????????????????????????????? | | ?????????????????? ????????????????????????????? | | ?????????????????? ""????????????????????????????? | | ?????????????????????????????????????????????????? | | ?????????????????????????????????????????????????? | | ?????????????????????????????????????????????????? | | ?????????????????????????????????????????????????? | | ?????????????????????????????????????????????????? | | ?????????????????????????????????????????????????? | | ?????????????????????????????????????????????????? | | ?????????????????????????????????????????????????? | | ?????????????????????????????????????????????????? | +----------------------------------------------------+ Best States ------------- Heat Dissipation 64 Energy Generation 31 Energy Capacity 535 Matter Stores 300 Matter Capacity 300 Sight Range 21 Terrain Scan Range 16 Terrain Scan Density 110 Armor Coverage 150 Utility Shielding 66 Evasion (%) 40 Recoil Reduction 4 Offensive Hacking 10 Item Schematics ----------------- Myomer Leg | -6/Factory | Hacked Robot Schematics ------------------ None Fabricated ------------ Nothing Repaired ---------- Hvy. Particle Cannon | 13% | -8/Storage Alien Tech Used ----------------- None Achievements -------------- None Challenges ------------ None Game ------ Seed MakeshiftDeliveryBarrier Manual? 0 Play Time 01:40:10 Cumulative 253.4 hours Start 2025.05.06 @ 08:06:43 End 2025.05.06 @ 18:00:17 Sessions 6 Manual Loads 0 Difficulty Rogue Special Mode None Game No. 124 Rogue 65 Adventurer 16 Explorer 43 Win Type - Total 34 Types 21/5/2/1/0/1/2/1/1/0 Lore% 84 Gallery% 81 Achievement% 81 Wizard Run 0 Options --------- Layout 2 ASCII 0 Keyboard 0 Movement Mouse Keybinds 0 Fullscreen 1 Font 32/Tamsyn Map View 50x44 Zoom Use 0% Tactical HUD 1 Map Filters NONE Filters NONE Steam 1 RUN: 7ecd34bb-84c9-4e44-93bd-7c3e5bb2815c